fUST/lending_fUST_20250125
["ID","MTS","AMOUNT","RATE_DAILY","PERIOD"]
[350320293,1737792632315,-500.0,0.00017741,2]
[350320295,1737792632324,-587.37289828,0.00017741,2]
[350320297,1737792632333,-4610.31096094,0.00017741,2]
[350320854,1737792637966,-284.33402841,0.0001774,2]
[350320855,1737792637976,-540.64903906,0.00017741,2]
[350320857,1737792637986,-500.0,0.00017741,2]
[350320859,1737792637995,-500.0,0.00017741,2]
[350320862,1737792638006,-2272.87,0.00017741,2]
[350320864,1737792638015,-501.53,0.00017741,2]
[350320865,1737792638024,-2090.72,0.00017741,2]
[350320867,1737792638034,-166.61742715,0.00017741,2]
[350320870,1737792638048,-337.99239364,0.00017741,2]
[350320872,1737792638057,-443.28053681,0.00017741,2]
[350321075,1737792642933,-56.71946319,0.00017741,2]
[350321076,1737792642945,-437.46053681,0.00017741,2]
[350321101,1737792666887,407.264,0.00017563,2]
[350321102,1737792675266,407.264,0.00017563,2]
[350321103,1737792713140,227.688,0.0001686,2]
[350321104,1737792850385,4966.45,0.00024,120]
[350321105,1737792850658,232.022,0.0001686,2]
[350321106,1737792852247,939.5534287,0.00017569,2]
[350321107,1737792887747,196.413887,0.00017465,2]
[350321108,1737792897236,469.7767144,0.00017569,2]
[350321109,1737792931236,165.1546052,0.00016741,2]
[350321110,1737792969685,9436.42598836,0.00017383,2]
[350321111,1737792970864,500.0,0.000176,2]
[350321112,1737792987251,234.8883572,0.00017569,2]
[350321113,1737792992053,500.0,0.000176,2]
[350321114,1737793013292,500.0,0.000176,2]
[350321115,1737793032249,234.8883572,0.00017569,2]
[350321116,1737793034450,500.0,0.000176,2]
[350321117,1737793055617,500.0,0.000176,2]
[350321118,1737793056535,158.559538,0.00013973,2]
[350321121,1737793107585,-3000.0,0.000184,30]
[350321122,1737793107608,-3000.0,0.0001841,30]
[350321123,1737793107631,-3521.488419,0.0001842,30]
[350321124,1737793180990,-1662.12226454,0.0001774,5]
[350321125,1737793181014,-3073.36255439,0.0001774,5]
[350321126,1737793181072,-165.605899,0.00018027,5]
[350321127,1737793181136,-167.6621662,0.00018658,5]
[350321128,1737793181167,-157.169779,0.00018794,5]
[350321130,1737793233697,831.06113227,0.0001774,5]
[350321131,1737793247963,84421.5277856,0.00019,7]
[350321132,1737793255709,1245.39700494,0.00016741,2]
[350321133,1737793255736,3633.33127606,0.00016741,2]
[350321134,1737793257892,2413.83303494,0.00024,120]
[350321135,1737793262705,1142.37095,0.00024,120]
[350321137,1737793483416,258.162191,0.00016739,2]
[350321162,1737793612251,771542.5,0.000174,15]
[350321235,1737793832281,-306.76574142,0.00017638,2]
[350321237,1737793832291,-197.32592755,0.00017639,2]
[350321239,1737793832300,-197.32592755,0.000177,2]
[350321241,1737793832309,-300.0,0.00017737,2]
[350321243,1737793832319,-500.0,0.00017738,2]
[350321245,1737793832328,-137.55959265,0.00017738,2]
[350321247,1737793832342,-362.44040735,0.00017738,2]
[350321249,1737793832351,-2882.81,0.00017738,2]
[350321251,1737793832361,-4936.34,0.00017738,2]
[350321253,1737793832370,-500.0,0.00017738,2]
[350321255,1737793832379,-2334.57,0.00017738,2]
[350321257,1737793832388,-2003.6,0.00017738,2]
[350321259,1737793832397,-500.0,0.00017738,2]
[350321261,1737793832408,-1212.2,0.00017738,2]
[350321263,1737793832416,-500.0,0.00017738,2]
[350321266,1737793832426,-842.97,0.00017738,2]
[350321269,1737793832435,-2298.95,0.00017738,2]
[350321272,1737793832443,-500.0,0.00017738,2]
[350321275,1737793832453,-782.91,0.00017738,2]
[350321278,1737793832462,-500.0,0.00017738,2]
[350321281,1737793832471,-959.57,0.00017738,2]
[350321284,1737793832480,-1259.12,0.00017738,2]
[350321287,1737793832489,-787.73,0.00017738,2]
[350321290,1737793832499,-503.79,0.00017738,2]
[350321293,1737793832510,-2264.39,0.00017738,2]
[350321297,1737793832519,-3369.34,0.00017738,2]
[350321300,1737793832529,-500.0,0.00017738,2]
[350321304,1737793832539,-500.0,0.00017738,2]
[350321306,1737793832548,-500.0,0.00017738,2]
[350321310,1737793832558,-350.58,0.00017738,2]
[350321315,1737793832579,-500.0,0.00017738,2]
[350321318,1737793832588,-500.0,0.00017738,2]
[350321321,1737793832598,-500.92207891,0.00017738,2]
[350321324,1737793832608,-1134.66,0.00017738,2]
[350321328,1737793832618,-1173.07,0.00017738,2]
[350321331,1737793832628,-482.70263945,0.00017738,2]
[350321333,1737793832638,-187.15448922,0.00017738,2]
[350321335,1737793832648,-504.95,0.00017739,2]
[350321338,1737793832659,-500.15991818,0.00017739,2]
[350321340,1737793832669,-383.96542432,0.00017739,2]
[350321342,1737793832679,-500.0,0.00017739,2]
[350321344,1737793832689,-1334.99,0.00017739,2]
[350321346,1737793832699,-500.0,0.00017739,2]
[350321348,1737793832709,-500.0,0.00017739,2]
[350321350,1737793832718,-500.0,0.00017739,2]
[350321352,1737793832729,-500.0,0.00017739,2]
[350321354,1737793832739,-500.0,0.00017739,2]
[350321356,1737793832750,-500.0,0.00017739,2]
[350321359,1737793832762,-146.20487357,0.00017739,2]
[350322542,1737793845466,652.68,0.00010959,2]
[350322986,1737793849958,2821.73843871,0.00017538,2]
[350323193,1737793858330,2821.73843871,0.00017538,2]
[350323194,1737793867228,2216.41874408,0.00017538,2]
[350323196,1737794001125,424.84278194,0.00017535,2]
[350323199,1737794175901,1930.3585913,0.0001674,2]
[350323200,1737794194131,161.0042395,0.0001674,2]
[350323202,1737794321185,188.945772,0.00013973,2]
[350323203,1737794367844,2144.380202,0.00024,120]
[350323206,1737794565408,238.64878,0.00016739,2]
[350323219,1737794848273,5316.99903536,0.00017369,2]
[350323237,1737794981250,288428.621,0.00024,120]
[350323255,1737795032321,-268.42002376,0.00017637,2]
[350323256,1737795032333,-151.0,0.000177,2]
[350323257,1737795032342,-3437.5,0.000177,2]
[350323258,1737795032351,-168.95,0.00017722,2]
[350323259,1737795032360,-500.0,0.00017735,2]
[350323260,1737795032371,-500.0,0.00017736,2]
[350323261,1737795032381,-500.0,0.00017736,2]
[350323262,1737795032390,-503.33485665,0.00017736,2]
[350323263,1737795032402,-500.0,0.00017736,2]
[350323264,1737795032411,-500.0,0.00017736,2]
[350323265,1737795032421,-500.0,0.00017736,2]
[350323266,1737795032430,-500.0,0.00017736,2]
[350323267,1737795032440,-311.06134058,0.00017736,2]
[350323272,1737795032489,-188.93865942,0.00017736,2]
[350323274,1737795032498,-465.9222604,0.00017736,2]
[350323319,1737795040407,-2296.7677396,0.00017736,2]
[350323321,1737795040417,-500.0,0.00017736,2]
[350323322,1737795040428,-500.0,0.00017736,2]
[350323323,1737795040438,-495.06921751,0.00017736,2]
[350323324,1737795040451,-3392.98344796,0.00017736,2]
[350323659,1737795046273,-1337.67655204,0.00017736,2]
[350323661,1737795046283,-1279.37,0.00017736,2]
[350323663,1737795046292,-494.72950014,0.00017736,2]
[350324330,1737795073041,157.169779,0.00017523,2]
[350324331,1737795089114,800.0,0.00017558,2]
[350324332,1737795102738,4002.79063979,0.00017537,2]
[350324333,1737795107994,169.23289803,0.00017461,2]
[350324334,1737795124016,169.23289803,0.00017461,2]
[350324335,1737795139731,169.23289803,0.00017461,2]
[350324336,1737795156842,169.23289803,0.00017461,2]
[350324337,1737795173176,169.23289803,0.00017461,2]
[350324338,1737795188753,169.23289803,0.00017461,2]
[350324339,1737795207538,169.23289803,0.00017461,2]
[350324340,1737795222971,169.23289803,0.00017461,2]
[350324341,1737795238719,169.23289803,0.00017461,2]
[350324342,1737795243479,197.64359,0.00013973,2]
[350324343,1737795254486,169.23289803,0.00017461,2]
[350324344,1737795270192,169.23289803,0.00017461,2]
[350324345,1737795286746,169.23289803,0.00017461,2]
[350324346,1737795303197,169.23289803,0.00017461,2]
[350324347,1737795318899,169.23289803,0.00017461,2]
[350324348,1737795337967,169.23289803,0.00017461,2]
[350324349,1737795355694,169.23289803,0.00017461,2]
[350324350,1737795373962,169.23289803,0.00017461,2]
[350324351,1737795389643,169.23289803,0.00017461,2]
[350324352,1737795405405,156.59847525,0.00017459,2]
[350324353,1737795439779,12900.4071442,0.0001687,2]
[350324354,1737795539833,227.598593,0.00016738,2]
[350324355,1737795686060,1635.0,0.00024,120]
[350324356,1737795696984,17846.19624886,0.00016736,2]
[350324357,1737795697013,7053.80375114,0.00016736,2]
[350324358,1737795859543,6527.69874097,0.00024,120]
[350324359,1737796106941,205.481688,0.00013973,2]
[350324406,1737796232553,-300.0,0.00017633,2]
[350324407,1737796232563,-169.23289803,0.00017634,2]
[350324408,1737796232572,-4142.04428893,0.00017634,2]
[350324409,1737796232659,-1335.7348304,0.00017634,2]
[350324410,1737796232669,-4375.0,0.00017731,2]
[350324411,1737796232678,-500.0,0.00017733,2]
[350324412,1737796232687,-2203.16,0.00017733,2]
[350324413,1737796232696,-842.95,0.00017733,2]
[350324414,1737796232705,-1124.19,0.00017733,2]
[350324415,1737796232714,-500.0,0.00017733,2]
[350324416,1737796232724,-500.0,0.00017733,2]
[350324417,1737796232734,-500.0,0.00017733,2]
[350324419,1737796232743,-500.0,0.00017733,2]
[350324420,1737796232752,-500.0,0.00017734,2]
[350324421,1737796232762,-500.0,0.00017734,2]
[350324422,1737796232771,-500.0,0.00017734,2]
[350324423,1737796232780,-500.0,0.00017734,2]
[350324424,1737796232789,-821.17,0.00017734,2]
[350324425,1737796232799,-340.81817734,0.00017734,2]
[350324426,1737796232809,-546.98,0.00017734,2]
[350324427,1737796232818,-500.0,0.00017734,2]
[350324428,1737796232827,-500.0,0.00017734,2]
[350324429,1737796232835,-500.0,0.00017734,2]
[350324430,1737796232844,-1009.4,0.00017734,2]
[350324431,1737796232853,-644.53,0.00017734,2]
[350324432,1737796232863,-500.0,0.00017734,2]
[350324433,1737796232872,-500.0,0.00017734,2]
[350324434,1737796232881,-500.0,0.00017734,2]
[350324435,1737796232890,-1226.06,0.00017734,2]
[350324436,1737796232901,-680.39,0.00017734,2]
[350324437,1737796232910,-500.0,0.00017734,2]
[350324438,1737796232919,-500.0,0.00017734,2]
[350324439,1737796232928,-688.46,0.00017734,2]
[350324440,1737796232937,-500.0,0.00017734,2]
[350324441,1737796232946,-500.0,0.00017734,2]
[350324442,1737796232955,-600.56,0.00017734,2]
[350324443,1737796232965,-528.1,0.00017734,2]
[350324444,1737796232974,-500.0,0.00017734,2]
[350324445,1737796232983,-995.1,0.00017734,2]
[350324446,1737796232992,-500.0,0.00017734,2]
[350324447,1737796233001,-558.82,0.00017734,2]
[350324448,1737796233011,-500.0,0.00017734,2]
[350324449,1737796233020,-500.0,0.00017734,2]
[350324450,1737796233029,-558.08,0.00017734,2]
[350324451,1737796233038,-500.0,0.00017734,2]
[350324452,1737796233047,-500.0,0.00017734,2]
[350324453,1737796233057,-151.0,0.00017734,2]
[350324454,1737796233071,-151.0,0.00017734,2]
[350324455,1737796233081,-151.0,0.00017734,2]
[350324456,1737796233090,-151.0,0.00017734,2]
[350324457,1737796233099,-785.33,0.00017734,2]
[350324458,1737796233109,-534.44,0.00017734,2]
[350324459,1737796233119,-500.0,0.00017734,2]
[350324460,1737796233128,-500.0,0.00017734,2]
[350324461,1737796233138,-515.97259155,0.00017734,2]
[350324462,1737796233149,-500.0,0.00017734,2]
[350324463,1737796233158,-500.0,0.00017734,2]
[350324464,1737796233173,-500.0,0.00017734,2]
[350324465,1737796233182,-500.0,0.00017734,2]
[350324466,1737796233191,-500.0,0.00017734,2]
[350324467,1737796233200,-1087.38,0.00017734,2]
[350324468,1737796233211,-1610.82,0.00017734,2]
[350324469,1737796233220,-500.0,0.00017734,2]
[350324470,1737796233229,-2528.56,0.00017734,2]
[350324471,1737796233240,-1615.77,0.00017734,2]
[350324472,1737796233249,-604.55,0.00017734,2]
[350324473,1737796233259,-83.63493981,0.00017734,2]
[350324811,1737796243823,-460.6049922,0.00017733,2]
[350324851,1737796246553,-39.3950078,0.00017733,2]
[350324852,1737796246562,-500.0,0.00017733,2]
[350324853,1737796246571,-422.12400316,0.00017733,2]
[350324854,1737796246580,-500.0,0.00017733,2]
[350324855,1737796246589,-416.36506019,0.00017734,2]
[350324856,1737796246598,-1363.32,0.00017734,2]
[350324857,1737796246607,-500.0,0.00017734,2]
[350324858,1737796246615,-529.96341939,0.00017734,2]
[350324859,1737796246625,-500.0,0.00017734,2]
[350324860,1737796246633,-509.36756697,0.00017734,2]
[350324861,1737796246642,-500.0,0.00017734,2]
[350324862,1737796246651,-504.78422808,0.00017734,2]
[350324863,1737796246662,-500.0,0.00017734,2]
[350324864,1737796246671,-630.88,0.00017734,2]
[350324865,1737796246680,-500.0,0.00017734,2]
[350324866,1737796246689,-401.50328628,0.00017734,2]
[350324867,1737796246698,-2647.58,0.00017734,2]
[350324868,1737796246706,-665.87,0.00017734,2]
[350324869,1737796246715,-593.98,0.00017734,2]
[350324870,1737796246723,-500.0,0.00017734,2]
[350324871,1737796246732,-500.0,0.00017734,2]
[350324872,1737796246741,-500.0,0.00017734,2]
[350324873,1737796246750,-1412.35,0.00017734,2]
[350324874,1737796246758,-500.0,0.00017734,2]
[350324875,1737796246767,-500.0,0.00017734,2]
[350324876,1737796246775,-500.0,0.00017734,2]
[350324877,1737796246784,-188.04,0.00017734,2]
[350324878,1737796246792,-500.0,0.00017734,2]
[350324879,1737796246801,-500.0,0.00017734,2]
[350324880,1737796246810,-500.0,0.00017734,2]
[350324881,1737796246819,-500.0,0.00017734,2]
[350324882,1737796246827,-640.62,0.00017734,2]
[350324883,1737796246836,-491.84916938,0.00017734,2]
[350324884,1737796246844,-500.0,0.00017734,2]
[350324885,1737796246852,-4533.55,0.00017734,2]
[350324886,1737796246861,-14321.43,0.00017734,2]
[350324887,1737796246870,-533.31387411,0.00017734,2]
[350324888,1737796246879,-500.0,0.00017734,2]
[350324889,1737796246888,-500.0,0.00017734,2]
[350324890,1737796246897,-500.0,0.00017734,2]
[350324891,1737796246906,-614.65,0.00017734,2]
[350324892,1737796246916,-500.0,0.00017734,2]
[350324893,1737796246925,-536.46,0.00017734,2]
[350324894,1737796246934,-500.0,0.00017734,2]
[350324895,1737796246943,-1334.12,0.00017734,2]
[350324896,1737796246952,-500.0,0.00017734,2]
[350324897,1737796246961,-575.26,0.00017734,2]
[350324898,1737796246970,-2237.3,0.00017734,2]
[350324899,1737796246978,-500.0,0.00017734,2]
[350324900,1737796246987,-613.03,0.00017734,2]
[350324901,1737796246996,-502.3432558,0.00017734,2]
[350324902,1737796247005,-500.0,0.00017734,2]
[350324903,1737796247013,-500.0,0.00017734,2]
[350324904,1737796247021,-1920.12,0.00017734,2]
[350324905,1737796247029,-402.4798391,0.00017734,2]
[350324906,1737796247038,-501.13289473,0.00017734,2]
[350324907,1737796247046,-500.0,0.00017734,2]
[350324908,1737796247055,-500.0,0.00017734,2]
[350324909,1737796247064,-501.08047821,0.00017734,2]
[350324910,1737796247073,-500.0,0.00017734,2]
[350324911,1737796247082,-500.0,0.00017734,2]
[350324912,1737796247091,-513.97459076,0.00017734,2]
[350324913,1737796247099,-631.47,0.00017734,2]
[350324914,1737796247108,-500.0,0.00017734,2]
[350324915,1737796247117,-718.5,0.00017734,2]
[350324916,1737796247126,-1161.69,0.00017734,2]
[350324917,1737796247135,-500.0,0.00017734,2]
[350324918,1737796247144,-500.0,0.00017734,2]
[350324919,1737796247153,-500.0,0.00017734,2]
[350324920,1737796247164,-500.0,0.00017734,2]
[350324921,1737796247311,-500.0,0.00017734,2]
[350324922,1737796247320,-328.90806317,0.00017734,2]
[350324923,1737796247329,-506.23532977,0.00017734,2]
[350324924,1737796247339,-502.06098866,0.00017734,2]
[350324925,1737796247348,-500.55639219,0.00017734,2]
[350324926,1737796247357,-500.0,0.00017734,2]
[350324927,1737796247366,-500.0,0.00017734,2]
[350324928,1737796247376,-500.0,0.00017734,2]
[350324929,1737796247385,-807.85,0.00017734,2]
[350324930,1737796247394,-701.23,0.00017734,2]
[350324931,1737796247403,-500.0,0.00017734,2]
[350324932,1737796247413,-500.0,0.00017734,2]
[350324933,1737796247421,-500.0,0.00017734,2]
[350324934,1737796247430,-153.58033951,0.00017734,2]
[350324935,1737796247439,-750.29,0.00017734,2]
[350324936,1737796247448,-2465.15,0.00017734,2]
[350324937,1737796247456,-500.0,0.00017734,2]
[350324938,1737796247465,-501.19224088,0.00017734,2]
[350324939,1737796247474,-500.0,0.00017734,2]
[350324940,1737796247483,-500.0,0.00017734,2]
[350324941,1737796247492,-734.73,0.00017734,2]
[350324942,1737796247501,-500.0,0.00017734,2]
[350324943,1737796247510,-1166.66,0.00017734,2]
[350324944,1737796247519,-326.82689059,0.00017734,2]
[350324945,1737796247528,-1206.65,0.00017734,2]
[350324946,1737796247537,-368.94084723,0.00017734,2]
[350324947,1737796247546,-500.0,0.00017734,2]
[350324948,1737796247555,-510.24526418,0.00017734,2]
[350324949,1737796247563,-500.0,0.00017734,2]
[350324950,1737796247571,-754.91,0.00017734,2]
[350324951,1737796247579,-500.0,0.00017734,2]
[350324952,1737796247588,-1025.54,0.00017734,2]
[350324953,1737796247596,-500.0,0.00017734,2]
[350324954,1737796247604,-500.0,0.00017734,2]
[350324955,1737796247612,-500.0,0.00017734,2]
[350324956,1737796247621,-2329.98,0.00017734,2]
[350324957,1737796247629,-505.5605077,0.00017734,2]
[350324958,1737796247638,-500.0,0.00017734,2]
[350324959,1737796247646,-784.05,0.00017734,2]
[350324960,1737796247654,-500.0,0.00017734,2]
[350324961,1737796247664,-3228.95,0.00017734,2]
[350324962,1737796247673,-500.0,0.00017734,2]
[350324963,1737796247682,-500.0,0.00017734,2]
[350324964,1737796247690,-18472.57466068,0.00017734,2]
[350324965,1737796404126,450.9347502,0.00017458,2]
[350324966,1737796430985,4000.0,0.000175,2]
[350324967,1737796471048,1957.67,0.000175,2]
[350324968,1737796482180,500.0,0.00017458,2]
[350324969,1737796564431,5480.2000391,0.00016749,2]
[350324970,1737796754278,157.169779,0.00017438,2]
[350324971,1737796953024,249.2569096,0.00016866,2]
[350324972,1737796989309,212.994309,0.00013973,2]
[350324974,1737797051247,496.1610962,0.00016732,2]
[350324988,1737797277997,1744.77818612,0.00016,2]
[350324990,1737797318448,3525.58226251,0.00016,2]
[350325079,1737797438583,-4854.83064666,0.00017631,2]
[350325081,1737797438593,-156.0,0.00017648,2]
[350325083,1737797438605,-156.55,0.00017648,2]
[350325085,1737797438614,-300.0,0.00017676,2]
[350325087,1737797438624,-153.0,0.00017677,2]
[350325089,1737797438634,-153.0,0.00017677,2]
[350325091,1737797438644,-153.0,0.00017677,2]
[350325094,1737797438661,-153.0,0.00017677,2]
[350325096,1737797438671,-153.0,0.00017677,2]
[350325098,1737797438680,-153.0,0.00017677,2]
[350325099,1737797438690,-153.0,0.00017677,2]
[350325101,1737797438703,-153.0,0.00017677,2]
[350325104,1737797438721,-256.54,0.00017677,2]
[350325106,1737797438735,-159.19,0.00017696,2]
[350325108,1737797438747,-153.0,0.00017697,2]
[350325109,1737797438757,-151.0,0.00017722,2]
[350325112,1737797438767,-2170.0,0.0001773,2]
[350325113,1737797438776,-500.0,0.0001773,7]
[350325137,1737797438982,-884.47,0.0001773,2]
[350325139,1737797438993,-500.0,0.0001773,2]
[350325141,1737797439002,-500.0,0.0001773,2]
[350325143,1737797439014,-500.0,0.0001773,2]
[350325145,1737797439025,-637.73204876,0.0001773,2]
[350325148,1737797439034,-1077.35,0.00017731,2]
[350325149,1737797439044,-269.12488924,0.00017731,2]
[350325151,1737797439053,-500.0,0.00017731,2]
[350325154,1737797439063,-2619.89,0.00017731,2]
[350325156,1737797439072,-1548.45,0.00017731,2]
[350325158,1737797439082,-1306.51,0.00017731,2]
[350325160,1737797439091,-500.0,0.00017731,2]
[350325162,1737797439100,-597.85,0.00017731,2]
[350325164,1737797439109,-1381.18,0.00017731,2]
[350325166,1737797439118,-500.0,0.00017731,2]
[350325168,1737797439127,-617.10596632,0.00017731,2]
[350325170,1737797439137,-500.0,0.00017731,2]
[350325172,1737797439146,-1889.13,0.00017731,2]
[350325174,1737797439155,-500.0,0.00017731,2]
[350325176,1737797439174,-13831.77,0.00017731,2]
[350325178,1737797439184,-1141.58,0.00017731,2]
[350325180,1737797439194,-589.04,0.00017731,2]
[350325182,1737797439204,-514.1,0.00017731,2]
[350325184,1737797439213,-4480.23,0.00017731,2]
[350325186,1737797439222,-796.42,0.00017731,2]
[350325188,1737797439235,-1300.8,0.00017731,2]
[350325190,1737797439244,-500.0,0.00017731,2]
[350325192,1737797439253,-608.32,0.00017731,2]
[350325194,1737797439266,-500.0,0.00017731,2]
[350325196,1737797439275,-1156.38,0.00017731,2]
[350325198,1737797439284,-500.0,0.00017731,2]
[350325200,1737797439293,-1526.02831736,0.00017731,2]
[350325639,1737797443541,-681.91168264,0.00017731,2]
[350325641,1737797443551,-709.4,0.00017731,2]
[350325643,1737797443561,-746.86,0.00017731,2]
[350325645,1737797443571,-2282.85,0.00017731,2]
[350325647,1737797443580,-500.0,0.00017731,2]
[350325649,1737797443589,-3194.93,0.00017731,2]
[350325651,1737797443599,-500.0,0.00017731,2]
[350325655,1737797443608,-2404.61,0.00017731,2]
[350325658,1737797443618,-500.0,0.00017731,2]
[350325661,1737797443627,-500.0,0.00017731,2]
[350325665,1737797443636,-500.0,0.00017731,2]
[350325668,1737797443647,-719.03,0.00017731,2]
[350325672,1737797443656,-1042.07,0.00017731,2]
[350325676,1737797443665,-500.0,0.00017731,2]
[350325680,1737797443674,-2423.2,0.00017731,2]
[350325683,1737797443683,-155.09263072,0.00017731,2]
[350325685,1737797443692,-1003.64,0.00017731,2]
[350325687,1737797443702,-503.65954905,0.00017731,2]
[350325689,1737797443711,-1536.6812772,0.00017732,5]
[350325691,1737797443721,-610.85756131,0.00017732,5]
[350325694,1737797443730,-500.0,0.00017732,2]
[350325695,1737797443739,-500.0,0.00017732,2]
[350325697,1737797443748,-451.99975296,0.00017732,2]
[350325700,1737797443766,-48.00024704,0.00017732,2]
[350325702,1737797443775,-500.0,0.00017732,2]
[350325704,1737797443785,-500.0,0.00017732,2]
[350325706,1737797443795,-500.0,0.00017732,2]
[350325708,1737797443804,-1174.98,0.00017732,2]
[350325710,1737797443814,-500.0,0.00017732,2]
[350325712,1737797443823,-500.0,0.00017732,2]
[350325715,1737797443832,-500.0,0.00017732,2]
[350325717,1737797443842,-500.0,0.00017732,2]
[350325719,1737797443851,-534.83,0.00017732,2]
[350325720,1737797443860,-512.17,0.00017732,2]
[350325722,1737797443870,-500.0,0.00017732,2]
[350325725,1737797443879,-500.0,0.00017732,2]
[350325727,1737797443889,-500.0,0.00017732,2]
[350325728,1737797443899,-500.0,0.00017732,2]
[350325730,1737797443908,-786.96,0.00017732,2]
[350325733,1737797443918,-524.19,0.00017732,2]
[350325734,1737797443928,-500.0,0.00017732,2]
[350325736,1737797443937,-500.0,0.00017732,2]
[350325738,1737797443947,-500.0,0.00017732,2]
[350325741,1737797443957,-500.0,0.00017732,2]
[350325743,1737797443966,-665.72,0.00017732,2]
[350325745,1737797443976,-500.0,0.00017732,2]
[350325747,1737797443986,-617.68,0.00017732,2]
[350325749,1737797443997,-638.12,0.00017732,2]
[350325751,1737797444006,-500.0,0.00017732,2]
[350325753,1737797444016,-500.0,0.00017732,2]
[350325755,1737797444026,-500.0,0.00017732,2]
[350325757,1737797444035,-500.0,0.00017732,2]
[350325759,1737797444045,-652.04,0.00017732,2]
[350325761,1737797444055,-151.0,0.00017732,2]
[350325763,1737797444064,-221.548548,0.00017732,2]
[350325765,1737797444074,-500.0,0.00017732,2]
[350325767,1737797444083,-500.0,0.00017732,2]
[350325769,1737797444091,-500.0,0.00017732,2]
[350325771,1737797444101,-605.16,0.00017732,2]
[350325773,1737797444110,-500.0,0.00017732,2]
[350325775,1737797444119,-659.77,0.00017732,2]
[350325777,1737797444128,-500.0,0.00017732,2]
[350325779,1737797444137,-551.29,0.00017732,2]
[350325781,1737797444148,-575.53,0.00017732,2]
[350325783,1737797444157,-500.0,0.00017732,2]
[350325785,1737797444167,-506.09,0.00017732,2]
[350325787,1737797444177,-500.0,0.00017732,2]
[350325789,1737797444186,-500.0,0.00017732,2]
[350325791,1737797444195,-974.47,0.00017732,2]
[350325793,1737797444204,-429.77640263,0.00017732,2]
[350325795,1737797444214,-535.53,0.00017732,2]
[350325797,1737797444223,-500.0,0.00017732,2]
[350325799,1737797444232,-258.27315078,0.00017732,2]
[350325801,1737797444241,-423.43951563,0.00017732,2]
[350325803,1737797444251,-500.0,0.00017732,2]
[350325805,1737797444261,-500.0,0.00017732,2]
[350325807,1737797444270,-704.12,0.00017732,2]
[350325809,1737797444279,-1118.05,0.00017732,2]
[350325811,1737797444288,-136.56696763,0.00017732,2]
[350330211,1737797665409,227.5985944,0.00016732,2]
[350330212,1737797744916,473.90803174,0.00017454,2]
[350330213,1737797753994,424.84278194,0.00017454,2]
[350330215,1737797920033,219.71051,0.00013973,2]
[350330216,1737797952104,157.169779,0.00017406,2]
[350330217,1737798108443,300.0,0.00017375,2]
[350330218,1737798124019,4247.97681581,0.00017453,2]
[350330219,1737798140724,4185.13576371,0.00017453,2]
[350330242,1737798514524,340.23514375,0.00017452,2]
[350330243,1737798560049,268.107,0.0001685,2]
[350330244,1737798618765,10432.40805591,0.00017354,2]
[350330318,1737798633247,-1626.78644679,0.00017628,2]
[350330385,1737798638898,-300.0,0.00017667,2]
[350330387,1737798638910,-155.0,0.00017668,2]
[350330389,1737798638919,-155.0,0.00017668,2]